Cogmind - Beta 13 @@@ ROGUE MODE // 2024.04.08 @ 21:43:02 Player: graour Result: Destroyed by S-10 Pest with Light Assault Rifle Performance ------------- Evolutions (0) 0 Regions Visited (2) 400 Robots Destroyed (32) 160 Value Destroyed (674) 674 Prototype IDs (0) 0 Alien Tech Used (0) 0 Bonus (0) 0 TOTAL SCORE: 1234 Bonus ------- None Cogmind --------- Core Integrity 0/250 Matter 297/300 Energy 250/250 System Corruption 0% Temperature Cool (40) Movement Walking (120) Location -10/Mines Parts ------- > --- POWER (1) -------- Ion Engine > --- PROPULSION (2) --- Aluminum Leg Aluminum Leg > --- UTILITY (2) ------ Small Storage Unit Signal Interpreter > --- WEAPON (2) ------- Small Laser > --- INVENTORY (8) ---- Light Ion Engine Aluminum Leg Aluminum Leg Improved Heat Sink Sensor Array Particle Gun Datajack Mining Claw Peak State ------------ > --- POWER ------------ Light Ion Engine > --- PROPULSION ------- Wheel Compact Wheel > --- UTILITY ---------- Improved Heat Sink Small Storage Unit > --- WEAPON ----------- Assault Rifle Light Assault Rifle > --- INVENTORY -------- Light Ion Engine Light Ion Engine Light Treads Light Treads Light Assault Rifle [Rating: 9] Favorites ----------- Power Ion Engine Engine Ion Engine Propulsion Aluminum Leg Leg Aluminum Leg Wheel Compact Wheel Utility Small Storage Unit Device Improved Heat Sink Storage Small Storage Unit Processor Signal Interpreter Weapon Light Assault Rifle Energy Gun Small Laser Ballistic Gun Light Assault Rifle Build | -11 -10 -10 ------- Run | Yrd Mat Min Slots Evolved . | . . . Power . | . . . Propulsion . | . . . Utility . | . . . Weapon . | . . . Parts Attached 24 | 6 12 6 Power 4 | 1 1 2 Engine 4 | 1 1 2 Core . | . . . Reactor . | . . . Propulsion 8 | 2 6 . Treads . | . . . Leg 6 | . 6 . Wheel 2 | 2 . . Hover . | . . . Flight . | . . . Utility 4 | 1 2 1 Device 1 | . 1 . Storage 2 | 1 . 1 Processor 1 | . 1 . Hackware . | . . . Protection . | . . . Artifact . | . . . Weapon 8 | 2 3 3 Energy Gun 1 | . . 1 Energy Cannon . | . . . Ballistic Gun 7 | 2 3 2 Ballistic Cannon . | . . . Launcher . | . . . Special Weapon . | . . . Impact Weapon . | . . . Slashing Weapon . | . . . Piercing Weapon . | . . . Special Melee Weapon . | . . . Unidentified Prototypes . | . . . Parts Lost 5 | . 3 2 Power 2 | . 1 1 Propulsion 2 | . 2 . Utility . | . . . Weapon 1 | . . 1 Highest Loss Streak 3 | . 3 1 To Critical Strikes . | . . . Average Slot Usage (%) 98 | . 96 99 Engine 13 | . 13 13 Leg 25 | . 22 28 Wheel 2 | . 4 . Device 1 | . 2 . Storage 14 | . 14 14 Processor 12 | . 10 14 Energy Gun 4 | . . 8 Ballistic Gun 23 | . 27 19 Naked Turns . | . . . Heaviest Build 13 | 11 13 13 Greatest Support 26 | 26 26 20 Greatest Overweight (x) 2 | . 2 . Average Overweight (x) . | . . . Largest Inventory Capacity 8 | 8 8 8 Average Capacity 7 | 7 8 8 Most Carried 8 | 4 8 8 Average Carried 7 | 1 7 8 Final Capacity 8 | 8 8 8 Final Carried 8 | 4 8 8 Class Distribution -------------------- 89% | Scavenger-Mutant 10% | Mutant Dominant Class ---------------- Scavenger-Mutant | -10/Materials Scavenger-Mutant | -10/Mines Resources | -11 -10 -10 ----------- Run | Yrd Mat Min Matter Collected 780 | 190 405 185 Remotely . | . . . Salvage Created 1115 | . 604 511 Parts 69 | . 38 31 Haulers Intercepted . | . . . Recyclers Shooed 1 | . . 1 Parts Field Recycled . | . . . Retrieved Matter . | . . . Parts Self-Destructed . | . . . Prevented . | . . . Kills | -11 -10 -10 ------- Run | Yrd Mat Min Combat Hostiles Destroyed 22 | . 11 11 Guns 22 | . 11 11 Classes Destroyed 7 | . 5 2 Worker 2 | . . 2 Builder 1 | . 1 . Recycler 4 | . 1 3 Operator 2 | . 2 . Watcher 1 | . 1 . Swarmer 8 | . . 8 Grunt 14 | . 11 3 Best Kill Streak 4 | . 3 4 Combat Bots Only 3 | . 3 3 Max Kills in Single Turn 1 | . 1 1 Gunslinging . | . . . Exploded . | . . . Melee . | . . . Uniques/NPCs Destroyed . | . . . Combat | -11 -10 -10 -------- Run | Yrd Mat Min Hostile Shots Fired 149 | . 76 73 Missed 32 | . 16 16 Damage Taken 1259 | . 742 517 Core 255 | . 151 104 Absorbed by Shields . | . . . Regen/Repaired (Parts) 65 | . 65 . Core Remaining (%) 100 | 100 . . Volleys Fired 130 | . 74 56 Largest 2 | . 2 2 Hottest 60 | . 40 60 Shots Fired 260 | . 148 112 Gun 260 | . 148 112 Cannon . | . . . Launcher . | . . . Special . | . . . Kinetic 252 | . 148 104 Thermal 8 | . . 8 Explosive . | . . . Electromagnetic . | . . . Robot Hit Streak 17 | . 17 14 Robot Miss Streak 5 | . 5 4 Penetration Max . | . . . Secondary Targets 3 | . 1 2 Max Gunslinging Chain 1 | . 1 1 Shots Hit Robots 174 | . 99 75 Core Hits 67 | . 39 28 Critical Kills . | . . . Critical Parts Destroyed 1 | . . 1 Critical Strikes 1 | . . 1 Destroy 1 | . . 1 Melee Attacks . | . . . Impact . | . . . Slashing . | . . . Piercing . | . . . Sneak Attacks . | . . . Combat Hostiles . | . . . Follow-up Attacks . | . . . Damage Inflicted 1593 | . 941 652 Guns 1593 | . 941 652 Cannons . | . . . Explosions . | . . . Melee . | . . . Ramming . | . . . Kinetic 1550 | . 941 609 Thermal 43 | . . 43 Explosive . | . . . Electromagnetic . | . . . Impact . | . . . Slashing . | . . . Piercing . | . . . Highest Corruption . | . . . Average Corruption . | . . . Corruption Purged . | . . . Corruption Blocked . | . . . Overload Shots . | . . . Overflow Damage . | . . . Projectiles . | . . . Explosions . | . . . Melee . | . . . Knockbacks . | . . . Impact . | . . . Kinetic . | . . . Secondary . | . . . Self-Inflicted Damage . | . . . Shots . | . . . Rammed . | . . . Targets Rammed . | . . . Kicked . | . . . Crushed . | . . . Highest Temperature 40 | . 18 40 Average Temperature 11 | . 7 16 Received Heat Transfer 570 | . 441 129 Siege Activations . | . . . Robots Corrupted . | . . . Combat Hostiles . | . . . Parts Fried . | . . . Impact Corruptions . | . . . Robots Melted . | . . . Combat Hostiles . | . . . Parts Melted . | . . . Heat Transferred 100 | . . 100 Parts Sabotaged . | . . . Parts Stolen . | . . . Parts Stripped . | . . . Power Chain Reactions . | . . . Alert | -11 -10 -10 ------- Run | Yrd Mat Min Peak Influence 193 | . 187 193 Initial 8 | . . 8 Average 58 | . 58 60 Maximum Alert Level . | . . . Low Security (%) 100 | 100 100 100 Level 1 . | . . . Level 2 . | . . . Level 3 . | . . . Level 4 . | . . . Level 5 . | . . . High Security . | . . . Max Security . | . . . Squads Dispatched 4 | . 4 . Investigation 2 | . 2 . Extermination . | . . . Reinforcement 2 | . 2 . Assault . | . . . Garrison . | . . . Intercept . | . . . Searches Triggered . | . . . Construction Impeded . | . . . Haulers Reinforced . | . . . Active Scanning Responses . | . . . Cargo Convoy Interrupts . | . . . Stealth | -11 -10 -10 --------- Run | Yrd Mat Min Distress Signals . | . . . Communications Jammed . | . . . Distress Signals . | . . . Times Spotted 33 | . 21 12 Peak Tracking Total 5 | . 5 3 Tactical Retreats 3 | . 1 2 Traps | -11 -10 -10 ------- Run | Yrd Mat Min Traps Triggered 1 | . 1 . Indirectly . | . . . Trap Hack Attempts . | . . . Triggered . | . . . Disarmed . | . . . Reprogrammed . | . . . Reused . | . . . Traps Extracted . | . . . Installed . | . . . Triggered . | . . . Machines | -11 -10 -10 ---------- Run | Yrd Mat Min Machines Disabled . | . . . Max in Single Turn . | . . . Machines Repaired . | . . . Machines Dismantled . | . . . Machines Sabotaged . | . . . Overloaded Fab Kills . | . . . Hacking | -11 -10 -10 --------- Run | Yrd Mat Min Machines Accessed 8 | . 8 . Terminals 6 | . 6 . Fabricators . | . . . Repair Stations 1 | . 1 . Recycling Units 1 | . 1 . Scanalyzers . | . . . Garrison Access . | . . . Total Hacks 15 | . 15 . Successful 7 | . 7 . Failed 8 | . 8 . Catastrophic 3 | . 3 . Database Lockouts . | . . . Manual 4 | . 4 . Terminals 10 | . 10 . Fabricators . | . . . Repair Stations 2 | . 2 . Recycling Units 3 | . 3 . Scanalyzers . | . . . Garrison Access . | . . . Terminal Hacks 3 | . 3 . Branch Access Points 1 | . 1 . Alert Level 1 | . 1 . Investigation Status 1 | . 1 . Fabricator Hacks . | . . . Repair Station Hacks 2 | . 2 . Scan Component 1 | . 1 . Repair 1 | . 1 . Recycling Unit Hacks 2 | . 2 . Recycle Component 1 | . 1 . Process 1 | . 1 . Scanalyzer . | . . . Garrison Access Hacks . | . . . Unauthorized Hacks . | . . . Terminals . | . . . Fabricators . | . . . Repair Stations . | . . . Recycling Units . | . . . Scanalyzers . | . . . Garrison Access . | . . . Data Cores Recovered . | . . . Used . | . . . Hacking Detections 6 | . 6 . Full Trace Events 2 | . 2 . Feedback Events . | . . . Feedback Blocked . | . . . Robot Schematics Acquired . | . . . Robots Built . | . . . Authchips . | . . . Time . | . . . Total Robot Build Rating . | . . . Part Schematics Acquired . | . . . Parts Built . | . . . Authchips . | . . . Time . | . . . Total Part Build Rating . | . . . Parts Repaired 1 | . 1 . Time 26 | . 26 . Parts Recycled 1 | . 1 . Recycled Matter . | . . . Retrieved Matter . | . . . Retrieved Components . | . . . Parts Scanalyzed . | . . . Part Schematics Acquired . | . . . Parts Damaged . | . . . Bothacking | -11 -10 -10 ------------ Run | Yrd Mat Min Used RIF Installer . | . . . Robots Hacked . | . . . Non-combat . | . . . Combat . | . . . Robot Hacks Applied . | . . . Relay Couplers Released . | . . . Fabnet Peak Effective % . | . . . Robots Rewired . | . . . Allies Hacked . | . . . Hacks Repelled . | . . . Allies | -11 -10 -10 -------- Run | Yrd Mat Min Total Allies . | . . . Largest Group . | . . . Highest-Rated Group . | . . . Highest-Rated Ally . | . . . Total Orders . | . . . Ally Attacks . | . . . Total Damage . | . . . Kills . | . . . Allies Corrupted . | . . . Allies Melted . | . . . Intel | -11 -10 -10 ------- Run | Yrd Mat Min Robot Analysis Total . | . . . Derelict Logs Recovered 2 | . . 2 Drone Launches . | . . . Drone Recoveries . | . . . Exploration | -11 -10 -10 ------------- Run | Yrd Mat Min Turns Passed 2617 | 54 1187 1376 Spaces Moved 1177 | 46 577 554 Core 3 | 1 2 . Treads . | . . . Legs 1030 | . 476 554 Wheels 144 | 45 99 . Hover . | . . . Flight . | . . . Fastest Speed 50 | 50 90 120 Average Speed 116 | 90 114 120 Slowest Speed 150 | 100 150 120 Overloaded Moves . | . . . Propulsion Burnouts . | . . . Robots Hopped . | . . . Cave-ins Triggered . | . . . Exploration Rate (%) 59 | 4 92 83 Regions Visited 2 Branch Regions 1 Pre-discovered Areas . | . . . Known Exits Taken 1 | . 1 . Unknown Exits Taken 1 | 1 . . Scrap Searched 1 | . . 1 Spaces Dug . | . . . Terrain Destroyed . | . . . Melee . | . . . Projectile . | . . . AOE . | . . . Terrain Rammed . | . . . Walls Destroyed . | . . . Machines Disabled . | . . . Actions | -11 -10 -10 --------- Run | Yrd Mat Min Total 2204 | 55 977 1172 Wait 839 | . 288 551 Move 1175 | 45 576 554 Hop . | . . . Pick Up 17 | 4 13 . Fast Attach 14 | 6 6 2 Attach . | . . . Detach . | . . . Swap 10 | . 6 4 Drop 19 | . 14 5 Fire 130 | . 74 56 Melee . | . . . Ram . | . . . Kick . | . . . Crush . | . . . Escape Stasis . | . . . Rewire . | . . . Trap . | . . . Miscellaneous . | . . . Route ------- -11/Scrapyard -10/Materials (discovered 4 exits: *Mat x3 / *Min) -10/Mines (discovered 3 exits: *Mat x2 / *Sub) History --------- Turn | Location | Event 7 | -11/Scrapyard | Discovered new exit (range 15) 55 | -11/Scrapyard | Entered Materials 140 | -10/Materials | Discovered new exit (range 9) 172 | -10/Materials | Discovered new exit (range 10) 283 | -10/Materials | Lost 3 parts (1p2n) 392 | -10/Materials | Discovered new exit (range 15) 493 | -10/Materials | Repaired Lgt. Assault Rifle 554 | -10/Materials | Core integrity fell below 50% 590 | -10/Materials | Build established: Scavenger-Mutant 610 | -10/Materials | Discovered new exit (range 15) 794 | -10/Materials | Identified exit to Materials 1081 | -10/Materials | Identified exit to Mines 1242 | -10/Materials | Entered Mines 1469 | -10/Mines | Discovered exit to Materials (range 12) 1617 | -10/Mines | Discovered exit to Materials (range 11) 1710 | -10/Mines | Core integrity fell below 20% 1820 | -10/Mines | Learned Materials emergency access door positions 2503 | -10/Mines | Discovered new exit (range 5) 2543 | -10/Mines | Identified exit to Subcaves 2618 | -10/Mines | Destroyed by S-10 Pest with Light Assault Rifle Last Messages --------------- 02339_ T-07 Excavator is excavating. 02353_ U-05 Engineer lays Concrete. 02389_ T-07 Excavator is excavating. 02401_ U-05 Engineer lays Concrete. 02433_ K-01 Serf collects debris. 02440_ T-07 Excavator is excavating. 02445_ K-01 Serf collects debris. 02458_ U-05 Engineer lays Concrete. 02459_ U-05 Engineer builds a Wall. 02490_ T-07 Excavator is excavating. 02495_ U-05 Engineer lays Concrete. 02497_ U-05 Engineer builds a Wall. 02503_ T-07 Excavator is excavating. 02503_ EXIT=FOUND 02507_ U-05 Engineer lays Concrete. 02543_ EXIT=IDENTIFIED: SUBCAVES 02596_ S-10 Pest destroyed. 02596_ Switching to secondary target: S-10 Pest. 02610_ S-10 Pest destroyed. 02616_ Lgt. Assault Rifle destroyed. Map ----- +----------------------------------------------------+ | ?????# ### < #??????????? | | ?????# #?# ##### ######### #??????????? | | ?????# #?## ##???# ##???????# #??????????? | | ?????# #??# ##???# #????????# #??????????? | | #????# #??# ##???# ##????????# #??????????? | | ###### #### ###???# ##?????????# #??????????? | | !%= #????# #??????????# #####??????? | | ##############???# ##??????????# #??????? | | ?????????????????# #????????????# #??????? | | ?????????????????## #?????????????###### #??????? | | ??????????????????###???????????????????# #?????## | | ??????????????????????????????####?????## ##???## | | ???????????????????????????#### ##???## ##?## | | ???????###????????????????## #???# #?# | | ??????## #??????????????## ##?## """ #?# | | ?????## #???########### ### """ #?# | | ?????# #??# """ #?## | | ?????# ### ##?## | | ##????# ####### ### #??# | | #?????# #?????# #?## #??# | | #?????## ####?????# #??#### #### #??# | | #??????#### ##????????# #?????#####??## ##?# | | #?????????## #?????????# #?????????????## #?# | | #??????????# #?????????# #??????#####???## ### | | #??????????# #?????????# #?????## ##???# | | #??????????# #?????????#@#?????# #??## | | ############ #?????????# #?????# #### ### | | ! #?????????#=#?????## ## ##?# | | %############ #?????????#[#??????## ##??? | | *#??????????# #?????????#s#???????## #???? | | ###????????# ?????????[==????????## ##### | | #????????# ##????????"" ?????????### # | | #???????? #?????????"" ???????????## | | #???????? ##?????????"" ????????????## | | #????????#??????????? ?????????????## # | | #????????????????????"" ??????????????########> | | #?????????????????????? "????????????????????## | | #?????????????????????? "?????????????????????? | | #?????????????????????? ?????????????????????? | | ####??????????????????????? ?????????????????????? | | ??????????????????????????? ?????????????????????? | | ??????????????????????????? ?????????????????????? | | ?????????????????????????????????????????????????? | | ?????????????????????????????????????????????????? | | | | | | | | | | | | | +----------------------------------------------------+ Best States ------------- Heat Dissipation 39 Energy Generation 10 Energy Capacity 250 Matter Stores 300 Matter Capacity 300 Sight Range 16 Terrain Scan Density 10 Evasion (%) 55 Item Schematics ----------------- None Robot Schematics ------------------ None Fabricated ------------ Nothing Alien Tech Used ----------------- None Achievements -------------- None Challenges ------------ None Game ------ Seed CloakProjectionBeamcaster Manual? 0 Play Time 00:22:20 Cumulative 15.0 hours Start 2024.04.08 @ 21:17:10 End 2024.04.08 @ 21:43:02 Sessions 1 Manual Loads 0 Difficulty Rogue Special Mode None Game No. 31 Rogue 31 Adventurer 0 Explorer 0 Win Type - Total 0 Types 0/0/0/0/0/0/0/0/0 Lore% 17 Gallery% 24 Achievement% 19 Wizard Run 0 Options --------- Layout 1 ASCII 0 Keyboard 1 Movement Arrows Keybinds 0 Fullscreen 1 Font 24/Smallcaps Map View 50x35 Zoom Use 0% Tactical HUD 1 Map Filters NONE Filters NONE Steam 1 RUN: 14d7f0ec-2394-49c4-b3aa-9c5dbcbf4bbd